Cogmind - Beta 13 @@@ ROGUE MODE // 2024.04.08 @ 16:09:24 Player: gabr Result: Destroyed by Y-54 Guardian with Gatling Laser Performance ------------- Evolutions (3) 1500 Regions Visited (5) 1000 Robots Destroyed (89) 445 Value Destroyed (1667) 1667 Prototype IDs (9) 180 Alien Tech Used (0) 0 Bonus (0) 0 TOTAL SCORE: 4792 Bonus ------- None Cogmind --------- Core Integrity 0/700 Matter 142/300 Energy 6/100 System Corruption 5% Temperature Cool (16) Movement Core (50) Location -7/Factory Parts ------- > --- POWER (2) -------- (None) > --- PROPULSION (4) --- (None) > --- UTILITY (5) ------ Core Analyzer Core Analyzer Core Analyzer > --- WEAPON (2) ------- Precision Beam Rifle > --- INVENTORY (5) ---- Wheel Weapon Cycler System Shield Peak State ------------ > --- POWER ------------ Improved Deuterium Engine Micro Nuclear Core > --- PROPULSION ------- Improved Hover Unit Improved Hover Unit Gravmag System Gravmag System > --- UTILITY ---------- Small Storage Unit Improved Sensor Array Improved Signal Interpreter Energy Filter Improved Shield Generator > --- WEAPON ----------- Precision Beam Rifle Precision Assault Rifle > --- INVENTORY -------- Improved Deuterium Engine Flight Unit Cesium-ion Thruster Cesium-ion Thruster Weapon Cycler System Shield Pulse Rifle Precision Assault Rifle [Rating: 46] Favorites ----------- Power Cooled Ion Engine Engine Cooled Ion Engine Power Core Light Nuclear Core Propulsion Wheel Leg Aluminum Leg Wheel Wheel Hover Unit Gravmag System Flight Unit Flight Unit Utility Improved Signal Interpreter Device Improved Sensor Array Storage Small Storage Unit Processor Improved Signal Interpreter Hackware Hacking Suite Protection Propulsion Shielding Weapon Improved Assault Rifle Energy Gun Small Laser Energy Cannon Advanced Beam Cannon Ballistic Gun Improved Assault Rifle Launcher Grenade Launcher Build | -11 -10 -10 -9 -8 -7 ------- Run | Yrd Mat Min Mat Mat Fac Slots Evolved 6 | . . . 2 2 2 Power 1 | . . . . . 1 Propulsion 2 | . . . 2 . . Utility 3 | . . . . 2 1 Weapon . | . . . . . . Parts Attached 169 | 7 10 2 50 64 36 Power 25 | 1 2 1 3 10 8 Engine 21 | 1 2 1 3 7 7 Core 4 | . . . . 3 1 Reactor . | . . . . . . Propulsion 62 | 2 4 . 28 16 12 Treads . | . . . . . . Leg 8 | . . . 8 . . Wheel 33 | 2 4 . 16 6 5 Hover 4 | . . . . . 4 Flight 17 | . . . 4 10 3 Utility 41 | 2 . 1 8 21 9 Device 14 | 1 . . . 9 4 Storage 6 | 1 . 1 3 . 1 Processor 7 | . . . 1 2 4 Hackware 1 | . . . 1 . . Protection 13 | . . . 3 10 . Artifact . | . . . . . . Weapon 41 | 2 4 . 11 17 7 Energy Gun 23 | 2 2 . 5 11 3 Energy Cannon 3 | . 1 . 1 1 . Ballistic Gun 14 | . 1 . 4 5 4 Ballistic Cannon . | . . . . . . Launcher 1 | . . . 1 . . Special Weapon . | . . . . . . Impact Weapon . | . . . . . . Slashing Weapon . | . . . . . . Piercing Weapon . | . . . . . . Special Melee Weapon . | . . . . . . Unidentified Prototypes 9 | . . . 6 2 1 Parts Lost 44 | . 4 . 10 11 19 Power 4 | . 1 . . 1 2 Propulsion 21 | . 2 . 4 5 10 Utility 8 | . . . 1 3 4 Weapon 11 | . 1 . 5 2 3 Highest Loss Streak 15 | . 4 . 8 6 15 To Critical Strikes 2 | . . . 2 . . Average Slot Usage (%) 87 | . 97 100 84 88 83 Engine 9 | . 13 14 11 6 10 Leg 4 | . . . 10 . . Wheel 14 | . 25 28 23 3 1 Hover 1 | . . . . . 11 Flight 11 | . . . 1 28 12 Device 8 | . 14 14 . 11 15 Storage 5 | . 14 14 7 . 3 Processor 5 | . . . 2 9 11 Hackware 1 | . . . 3 . . Protection 3 | . . . 1 10 . Energy Gun 11 | . 25 . 7 13 6 Energy Cannon 2 | . 1 14 2 2 . Ballistic Gun 6 | . . 14 11 1 5 Naked Turns 26 | . . . . . 26 Heaviest Build 36 | 11 14 19 35 22 36 Greatest Support 58 | 20 20 20 52 58 58 Greatest Overweight (x) 10 | 2 . . 10 4 3 Average Overweight (x) . | . . . . . . Largest Inventory Capacity 15 | 8 8 10 15 5 8 Average Capacity 7 | 7 8 9 9 5 6 Most Carried 15 | 8 8 10 15 5 8 Average Carried 6 | 4 7 9 8 4 6 Final Capacity 10 | 8 8 10 5 5 5 Final Carried 10 | 8 8 10 5 5 3 Class Distribution -------------------- 50% | Mutant 34% | Scavenger-Mutant 8% | Sprinter 7% | Scavenger-Sprinter Dominant Class ---------------- Mutant | -10/Materials Mutant | -10/Mines Scavenger-Mutant | -9/Materials Mutant | -8/Materials Mutant | -7/Factory Resources | -11 -10 -10 -9 -8 -7 ----------- Run | Yrd Mat Min Mat Mat Fac Matter Collected 2295 | 270 63 266 795 626 275 Remotely . | . . . . . . Salvage Created 2983 | 161 404 94 1226 848 250 Parts 191 | 11 27 2 80 50 21 Haulers Intercepted 8 | . . . 4 3 1 Recyclers Shooed 7 | . 3 . 2 2 . Parts Field Recycled . | . . . . . . Retrieved Matter . | . . . . . . Parts Self-Destructed . | . . . . . . Prevented . | . . . . . . Kills | -11 -10 -10 -9 -8 -7 ------- Run | Yrd Mat Min Mat Mat Fac Combat Hostiles Destroyed 50 | . 14 . 18 16 2 Guns 44 | . 14 . 16 13 1 Cannons 4 | . . . 1 3 . AOE 1 | . . . 1 . . Classes Destroyed 12 | 2 3 . 5 1 1 Worker 9 | . 2 . 4 2 1 Builder 4 | . . . 2 2 . Tunneler 6 | 4 1 . . . 1 Hauler 8 | . . . 4 3 1 Recycler 8 | 1 . 1 4 1 1 Mechanic 1 | . . . . 1 . Operator 3 | . . . 2 . 1 Swarmer 20 | . 9 . 3 8 . Grunt 22 | . 5 . 12 5 . Brawler 1 | . . . 1 . . Sentry 5 | . . . 2 3 . Programmer 2 | . . . . . 2 Best Kill Streak 15 | 4 15 1 6 7 2 Combat Bots Only 9 | . 9 . 4 5 1 Max Kills in Single Turn 2 | 1 2 1 2 2 1 Gunslinging 1 | . 1 . . 1 . Exploded 1 | . . . 1 . . Melee . | . . . . . . Uniques/NPCs Destroyed . | . . . . . . Combat | -11 -10 -10 -9 -8 -7 -------- Run | Yrd Mat Min Mat Mat Fac Hostile Shots Fired 747 | . 91 . 136 171 349 Missed 245 | . 25 . 37 58 125 Damage Taken 5494 | . 604 . 1435 1630 1825 Core 1630 | . 139 . 333 455 703 Absorbed by Shields 180 | . . . . . 180 Redirected to Shielding 47 | . . . 8 39 . Core Remaining (%) 44 | 100 . 44 16 17 . Volleys Fired 270 | 9 52 1 95 79 34 Largest 2 | 2 2 2 2 2 2 Hottest 133 | 80 90 80 133 133 89 Shots Fired 471 | 18 96 2 173 118 64 Gun 426 | 18 94 1 154 95 64 Cannon 43 | . 2 1 17 23 . Launcher 2 | . . . 2 . . Special . | . . . . . . Kinetic 124 | . 2 1 83 7 31 Thermal 345 | 18 94 1 88 111 33 Explosive 2 | . . . 2 . . Electromagnetic . | . . . . . . Robot Hit Streak 12 | 6 8 2 12 8 11 Robot Miss Streak 4 | 1 4 . 3 3 2 Penetration Max 1 | . . . . . 1 Secondary Targets 10 | . 3 . 3 4 . Max Gunslinging Chain 1 | . 1 . 1 1 . Shots Hit Robots 306 | 12 53 2 120 69 50 Core Hits 132 | 6 26 1 48 39 12 Critical Kills . | . . . . . . Critical Parts Destroyed 1 | . . . . . 1 Critical Strikes 14 | . . . 1 7 6 Burn 13 | . . . 1 7 5 Destroy 1 | . . . . . 1 Melee Attacks . | . . . . . . Impact . | . . . . . . Slashing . | . . . . . . Piercing . | . . . . . . Sneak Attacks . | . . . . . . Combat Hostiles . | . . . . . . Follow-up Attacks . | . . . . . . Damage Inflicted 5321 | 132 655 32 2075 1393 1034 Guns 4384 | 132 652 15 1497 1057 1031 Cannons 621 | . . 17 268 336 . Explosions 307 | . . . 307 . . Melee . | . . . . . . Ramming 9 | . 3 . 3 . 3 Kinetic 1490 | . 24 15 897 12 542 Thermal 3515 | 132 628 17 868 1381 489 Explosive 307 | . . . 307 . . Electromagnetic . | . . . . . . Impact . | . . . . . . Slashing . | . . . . . . Piercing . | . . . . . . Highest Corruption 7 | . . . 7 . 5 Average Corruption 5 | . . . 6 . 2 Corruption Purged . | . . . . . . Corruption Blocked . | . . . . . . Effects 43 | . . . 35 . 8 Message Errors 12 | . . . 8 . 4 Matter Fused 10 | . . . 10 . . Heat Flow Errors 5 | . . . 3 . 2 Energy Discharges 4 | . . . 3 . 1 Data Loss (minor) 5 | . . . 5 . . Data Loss (major) 1 | . . . 1 . . Misfires 1 | . . . 1 . . Alerts 2 | . . . 1 . 1 Weapon Failures 3 | . . . 3 . . Overload Shots . | . . . . . . Overflow Damage 26 | . . . 21 5 . Projectiles 13 | . . . 8 5 . Explosions 13 | . . . 13 . . Melee . | . . . . . . Knockbacks . | . . . . . . Impact . | . . . . . . Kinetic . | . . . . . . Secondary . | . . . . . . Self-Inflicted Damage 80 | . 1 . 78 . 1 Shots 2 | . . . 2 . . Rammed 4 | . 1 . 1 . 2 Targets Rammed 4 | . 1 . 1 . 2 Kicked . | . . . . . . Crushed . | . . . . . . Highest Temperature 462 | 54 261 18 320 412 462 Average Temperature 118 | 23 118 12 83 130 147 Received Heat Transfer 1835 | . 138 . 555 720 422 Effects 16 | . 1 . 2 6 7 Shutdowns 9 | . . . 1 4 4 Energy Bleed 1 | . . . . 1 . Interference 2 | . 1 . . . 1 Matter Decay 2 | . . . . 1 1 Damage (minor) 2 | . . . 1 . 1 Siege Activations . | . . . . . . Robots Corrupted . | . . . . . . Combat Hostiles . | . . . . . . Parts Fried . | . . . . . . Impact Corruptions . | . . . . . . Robots Melted 1 | . . . . . 1 Combat Hostiles 1 | . . . . . 1 Parts Melted 19 | 1 5 . 1 10 2 Heat Transferred 8734 | 300 1473 37 2151 3441 1332 Parts Sabotaged . | . . . . . . Parts Stolen . | . . . . . . Parts Stripped . | . . . . . . Power Chain Reactions . | . . . . . . Alert | -11 -10 -10 -9 -8 -7 ------- Run | Yrd Mat Min Mat Mat Fac Peak Influence 412 | 25 381 153 412 362 289 Initial 173 | . 16 148 59 173 126 Average 196 | 9 245 149 188 221 186 Maximum Alert Level 2 | . 1 . 2 1 1 Low Security (%) 50 | 100 34 100 53 42 50 Level 1 49 | . 65 . 45 57 49 Level 2 . | . . . 1 . . Level 3 . | . . . . . . Level 4 . | . . . . . . Level 5 . | . . . . . . High Security . | . . . . . . Max Security . | . . . . . . Squads Dispatched 16 | . 4 . 3 4 5 Investigation 5 | . 2 . 1 . 2 Extermination 1 | . . . . . 1 Reinforcement 10 | . 2 . 2 4 2 Assault . | . . . . . . Garrison . | . . . . . . Intercept . | . . . . . . Searches Triggered . | . . . . . . Construction Impeded . | . . . . . . Haulers Reinforced 1 | . . . . . 1 Active Scanning Responses . | . . . . . . Cargo Convoy Interrupts . | . . . . . . Stealth | -11 -10 -10 -9 -8 -7 --------- Run | Yrd Mat Min Mat Mat Fac Distress Signals 8 | . 2 . 3 2 1 Communications Jammed . | . . . . . . Distress Signals . | . . . . . . Times Spotted 108 | . 22 . 38 36 12 Peak Tracking Total 10 | . 7 . 6 10 5 Tactical Retreats 9 | . 1 . 4 2 2 Traps | -11 -10 -10 -9 -8 -7 ------- Run | Yrd Mat Min Mat Mat Fac Traps Triggered 3 | . . . 2 1 . Indirectly . | . . . . . . Trap Hack Attempts . | . . . . . . Triggered . | . . . . . . Disarmed . | . . . . . . Reprogrammed . | . . . . . . Reused . | . . . . . . Traps Extracted . | . . . . . . Installed . | . . . . . . Triggered . | . . . . . . Machines | -11 -10 -10 -9 -8 -7 ---------- Run | Yrd Mat Min Mat Mat Fac Machines Disabled 4 | . . . 2 2 . Max in Single Turn 1 | . . . 1 1 . Machines Repaired . | . . . . . . Machines Dismantled . | . . . . . . Machines Sabotaged . | . . . . . . Overloaded Fab Kills . | . . . . . . Hacking | -11 -10 -10 -9 -8 -7 --------- Run | Yrd Mat Min Mat Mat Fac Machines Accessed 12 | . 4 . 2 1 5 Terminals 11 | . 4 . 2 1 4 Fabricators 1 | . . . . . 1 Repair Stations . | . . . . . . Recycling Units . | . . . . . . Scanalyzers . | . . . . . . Garrison Access . | . . . . . . Total Hacks 23 | . 10 . 3 2 8 Successful 4 | . 1 . . 1 2 Failed 19 | . 9 . 3 1 6 Catastrophic 9 | . 5 . 1 . 3 Database Lockouts . | . . . . . . Manual 20 | . 10 . 3 2 5 Terminals 22 | . 10 . 3 2 7 Fabricators 1 | . . . . . 1 Repair Stations . | . . . . . . Recycling Units . | . . . . . . Scanalyzers . | . . . . . . Garrison Access . | . . . . . . Terminal Hacks 3 | . 1 . . 1 1 Open DSF 1 | . . . . . 1 Alert Level 1 | . 1 . . . . Unreport Threat 1 | . . . . 1 . Fabricator Hacks . | . . . . . . Repair Station Hacks . | . . . . . . Recycling Unit Hacks . | . . . . . . Scanalyzer . | . . . . . . Garrison Access Hacks . | . . . . . . Unauthorized Hacks 1 | . . . . . 1 Terminals 1 | . . . . . 1 Assimilate 1 | . . . . . 1 Fabricators . | . . . . . . Repair Stations . | . . . . . . Recycling Units . | . . . . . . Scanalyzers . | . . . . . . Garrison Access . | . . . . . . Data Cores Recovered 1 | . . . 1 . . Used . | . . . . . . Hacking Detections 10 | . 4 . 2 . 4 Full Trace Events 6 | . 3 . 1 . 2 Feedback Events . | . . . . . . Feedback Blocked . | . . . . . . Robot Schematics Acquired . | . . . . . . Robots Built . | . . . . . . Authchips . | . . . . . . Time . | . . . . . . Total Robot Build Rating . | . . . . . . Part Schematics Acquired . | . . . . . . Parts Built . | . . . . . . Authchips . | . . . . . . Time . | . . . . . . Total Part Build Rating . | . . . . . . Parts Repaired . | . . . . . . Time . | . . . . . . Parts Recycled . | . . . . . . Recycled Matter . | . . . . . . Retrieved Matter . | . . . . . . Retrieved Components . | . . . . . . Parts Scanalyzed . | . . . . . . Part Schematics Acquired . | . . . . . . Parts Damaged . | . . . . . . Bothacking | -11 -10 -10 -9 -8 -7 ------------ Run | Yrd Mat Min Mat Mat Fac Used RIF Installer . | . . . . . . Robots Hacked . | . . . . . . Non-combat . | . . . . . . Combat . | . . . . . . Robot Hacks Applied . | . . . . . . Relay Couplers Released . | . . . . . . Fabnet Peak Effective % . | . . . . . . Robots Rewired . | . . . . . . Allies Hacked . | . . . . . . Hacks Repelled . | . . . . . . Allies | -11 -10 -10 -9 -8 -7 -------- Run | Yrd Mat Min Mat Mat Fac Total Allies . | . . . . . . Largest Group . | . . . . . . Highest-Rated Group . | . . . . . . Highest-Rated Ally . | . . . . . . Total Orders . | . . . . . . Ally Attacks . | . . . . . . Total Damage . | . . . . . . Kills . | . . . . . . Allies Corrupted . | . . . . . . Allies Melted . | . . . . . . Intel | -11 -10 -10 -9 -8 -7 ------- Run | Yrd Mat Min Mat Mat Fac Robot Analysis Total . | . . . . . . Derelict Logs Recovered . | . . . . . . Drone Launches . | . . . . . . Drone Recoveries . | . . . . . . Exploration | -11 -10 -10 -9 -8 -7 ------------- Run | Yrd Mat Min Mat Mat Fac Turns Passed 3086 | 134 394 56 1143 884 475 Spaces Moved 2714 | 106 225 60 655 909 759 Core 84 | 10 . . 18 1 55 Treads . | . . . . . . Legs 166 | . . . 166 . . Wheels 835 | 96 225 60 390 56 8 Hover 201 | . . . . . 201 Flight 1428 | . . . 81 852 495 Fastest Speed 26 | 50 80 80 31 26 28 Average Speed 63 | 82 80 80 99 51 38 Slowest Speed 550 | 150 80 80 550 250 240 Overloaded Moves . | . . . . . . Propulsion Burnouts . | . . . . . . Robots Hopped 31 | . . . . 19 12 Cave-ins Triggered . | . . . . . . Exploration Rate (%) 29 | 5 53 10 35 54 17 Regions Visited 5 Branch Regions 1 Pre-discovered Areas . | . . . . . . Known Exits Taken 1 | . . . . 1 . Unknown Exits Taken 4 | 1 1 1 1 . . Scrap Searched . | . . . . . . Spaces Dug . | . . . . . . Terrain Destroyed 8 | . . . 8 . . Melee . | . . . . . . Projectile . | . . . . . . AOE 8 | . . . 8 . . Terrain Rammed . | . . . . . . Walls Destroyed . | . . . . . . Machines Disabled . | . . . . . . Actions | -11 -10 -10 -9 -8 -7 --------- Run | Yrd Mat Min Mat Mat Fac Total 3572 | 131 344 66 970 1191 870 Wait 273 | 1 43 . 114 104 11 Move 2659 | 105 224 59 654 880 737 Hop 19 | . . . . 9 10 Pick Up 55 | 9 6 2 21 6 11 Fast Attach 105 | 6 2 . 34 44 19 Attach 27 | 1 4 . 6 6 10 Detach 18 | . . . 6 7 5 Swap 37 | . 4 2 10 14 7 Drop 105 | . 8 2 29 42 24 Fire 270 | 9 52 1 95 79 34 Melee . | . . . . . . Ram 4 | . 1 . 1 . 2 Kick . | . . . . . . Crush . | . . . . . . Escape Stasis . | . . . . . . Rewire . | . . . . . . Trap . | . . . . . . Miscellaneous . | . . . . . . Route ------- -11/Scrapyard -10/Materials -10/Mines -9/Materials -8/Materials -7/Factory History --------- Turn | Location | Event 25 | -11/Scrapyard | Discovered new exit (range 15) 135 | -11/Scrapyard | Entered Materials 307 | -10/Materials | Build established: Mutant 311 | -10/Materials | Destroyed 9 combat bots 360 | -10/Materials | Core integrity fell below 50% 385 | -10/Materials | Lost 4 parts (1p2n1w) 523 | -10/Materials | Discovered new exit (range 8) 529 | -10/Materials | Entered Mines 581 | -10/Mines | Discovered new exit (range 6) 585 | -10/Mines | Entered Materials 585 | -9/Materials | Evolved 2 slots: Propulsion x2 721 | -9/Materials | Lost 8 parts (4n1u3w) 749 | -9/Materials | Core integrity fell below 50% 1230 | -9/Materials | Build established: Scavenger-Mutant 1720 | -9/Materials | Discovered new exit (range 16) 1725 | -9/Materials | Core integrity fell below 20% 1728 | -9/Materials | Entered another Materials area 1728 | -8/Materials | Evolved 2 slots: Utility x2 1937 | -8/Materials | Core integrity fell below 50% 1979 | -8/Materials | Lost 6 parts (1p2n2u1w) 2610 | -8/Materials | Discovered new exit (range 9) 2612 | -8/Materials | Core integrity fell below 20% 2612 | -8/Materials | Identified exit to Factory 2612 | -8/Materials | Entered Factory 2612 | -7/Factory | Evolved 2 slots: Power x1, Utility x1 3055 | -7/Factory | Core integrity fell below 50% 3072 | -7/Factory | Lost 15 parts (2p9n3u1w) 3074 | -7/Factory | Core integrity fell below 20% 3087 | -7/Factory | Destroyed by Y-54 Guardian with Gatling Laser Last Messages --------------- 03034_ Com. Wheel destroyed. 03034_ Dropped Imp. Deuterium Engine. 03034_ Flight Unit destroyed. 03036_ ALERT: Suspicious intruders detected, dispatching Cutter reinforcements to area. 03039_ K-01 Serf cleans the Construction Platform. 03041_ Cesium-ion Thruster destroyed. 03041_ Knocked back. 03041_ Acquired 1 matter. 03045_ K-01 Serf cleans the DSF Access. 03067_ KZ8AXCC |XI LI| QD63SQGNENQKLB=4 03067_ Acquired Core Analyzer. 03072_ Y-54 Guardian suffers critical hit (Burn). 03073_ Pulse Rifle destroyed. 03074_ Acquired Core Analyzer. 03076_ Acquired Gauss Rifle. 03079_ Acquired Core Analyzer. 03083_ Slug penetrates Y-54 Guardian. 03084_ System corrupted: FCS attempts to trigger Prc. Beam Rifle. 03084_ Gauss Rifle destroyed. Map ----- +----------------------------------------------------+ | ?????????????????????????????????????????????????? | | ?????????????????????????????????????????????????? | | ?????????????????????????????????????????????????? | | ?????????????????????????????????????????????????? | | ?????????????????????????????????????????????????? | | ?????????????????????????????????????????????????? | | ?????????????????????????????????????????????????? | | ?????????????????????????????????????????????????? | | ?????????????????????????????????????????????????? | | ?????????????????????????????????????????????????? | | ?????????????????????????????????????????????????? | | ?????????????????????????????????????????????????? | | ?????????????????????????????????????????????????? | | ?????????????????????????????????????????????????? | | ?????????????????????????????????????????????????? | | ???######??????########??????????????????????????? | | ???# #?????? #??????????????????????????? | | ???# #?????""""" #??????????????????????????? | | #### #????"""""" #??????????????????????????? | | + #????"""""" #??????????????????????????? | | #### # """""" #??????????????????????????? | | #### # !########???????????????????? | | #######???#######+### #???????????????????? | | ############### # #???????????????????? | | # #???????????????????? | | Y /Y @ #???????????????????? | | ;Y #???????????????????? | | %############### # #???????????????????? | | #?????????????### ##### ####???????????????????? | | ###???????????????# #???###??????????????????????? | | ??????????????????# #????????????????????????????? | | ??????????????????# #????????????????????????????? | | ??????????????????# #????????????????????????????? | | ??????????????????# #????????????????????????????? | | ??????????????????# #????????????????????????????? | | ??????????????????# #????????????????????????????? | | ??????????????????# ?????????????????????????????? | | ??????????????????? ?????????????????????????????? | | ?????????????????????????????????????????????????? | | ?????????????????????????????????????????????????? | | ?????????????????????????????????????????????????? | | ?????????????????????????????????????????????????? | | ?????????????????????????????????????????????????? | | ?????????????????????????????????????????????????? | | ?????????????????????????????????????????????????? | | ?????????????????????????????????????????????????? | | ?????????????????????????????????????????????????? | | ?????????????????????????????????????????????????? | | ?????????????????????????????????????????????????? | | ?????????????????????????????????????????????????? | +----------------------------------------------------+ Best States ------------- Heat Dissipation 41 Energy Generation 27 Energy Capacity 480 Matter Stores 300 Matter Capacity 300 Sight Range 16 Robot Scan Range 15 Terrain Scan Range 16 Terrain Scan Density 10 Additional Mass Support 9 Armor Coverage 225 Resistance: EM 15 Core Shielding 20 Propulsion Shielding 33 Weapon Shielding 66 Evasion (%) 64 Targeting Accuracy 6 Core Analysis 9 Energy Filtering 30 Particle Charging 15 Offensive Hacking 10 Item Schematics ----------------- None Robot Schematics ------------------ None Fabricated ------------ Nothing Alien Tech Used ----------------- None Achievements -------------- None Challenges ------------ None Game ------ Seed RocketCentriumMapper Manual? 0 Play Time 00:45:19 Cumulative 68.8 hours Start 2024.04.08 @ 13:55:26 End 2024.04.08 @ 16:09:24 Sessions 1 Manual Loads 0 Difficulty Rogue Special Mode None Game No. 152 Rogue 152 Adventurer 0 Explorer 0 Win Type - Total 0 Types 0/0/0/0/0/0/0/0/0 Lore% 27 Gallery% 41 Achievement% 31 Wizard Run 0 Options --------- Layout 0 ASCII 0 Keyboard 1 Movement Numpad Keybinds 0 Fullscreen 1 Font 24/Terminus Map View 76x50 Zoom Use 0% Tactical HUD 1 Map Filters NONE Filters NONE Steam 1 RUN: 71a279a0-691f-4c69-87d0-8bcdf8706a8a